[Event "2nd Serbia Open Masters 2022"]
[Site "Novi Sad"]
[Date "2022.07.01"]
[Round "4.27"]
[White "Pasti, Aron"]
[Black "Suleymanli, Aydin"]
[Result "*"]
[ECO "C17"]
[WhiteElo "2380"]
[BlackElo "2537"]
[Annotator "TA"]
[PlyCount "66"]
[EventDate "2022.06.28"]
[EventType "swiss"]
[EventCountry "SRB"]
[SourceTitle "playchess.com"]
[Source "ChessBase"]
[SourceQuality "1"]
[TimeControl "40/5400+30:900+30"]

{[%evp 16,66,0,0,0,0,0,0,0,0,0,0,0,0,0,0,83,78,78,78,83,91,87,91,89,87,74,77,178,145,176,62,62,0,178,0,64,0,181,91,90,91,187,176,187,175,185,175,159,137,127,139,158]} 1. e4 {[%emt 0:00:03]} e6 {[%emt 0:02:59]} 2. d4 {[%emt 0:00:06]} d5 {[%emt 0:00:44]} 3. Nc3 {[%emt 0:00:07]} Bb4 {[%emt 0:00:06]} 4. e5 {[%emt 0:00:06]} c5 {[%emt 0:00:07]} 5. Bd2 {[%emt 0:00:05]} Ne7 {[%emt 0:00:08]} 6. a3 {[%emt 0:00:06]} Bxc3 {[%emt 0:00:04]} 7. Bxc3 {[%emt 0:00:06]} b6 {[%emt 0:00:02]} 8. Bb5+ {[%emt 0:00:08]} Bd7 {[%emt 0:00:04]} 9. Bd3 {[%emt 0:00:05]} Nbc6 {[%emt 0:00:03] C17: French: 3 Nc3 Bb4 4 e5 c5 sidelines.} 10. f4 {[%emt 0:00:07]} c4 {[%emt 0:00:04]} 11. Be2 {[%emt 0:05:38]} Nf5 {[%emt 0:00:16] Hoping for ...Qh4+. The position is equal.} 12. g3 {[%emt 0:03:45] Inhibits Qh4.} b5 {[%emt 0:00:35]} 13. b4 {[%emt 0:01:07]} a5 {[%emt 0:02:14]} 14. bxa5 {[%emt 0:01:58]} Rxa5 {[%emt 0:00:53] [#]} 15. Nf3 $146 {[%emt 0:04:11]} ({Predecessor:} 15. Qd2 Ra4 16. Nf3 O-O 17. O-O Qb6 18. g4 Nfe7 19. Bb2 f5 20. exf6 Rxf6 21. Ne5 Be8 {½-½ (21) Bartel,M (2623)-Vallejo Pons,F (2689) Germany 2016}) 15... b4 {[%emt 0:02:02]} (15... Ra4 $11 {remains equal.}) 16. axb4 $16 {[%emt 0:07:07]} (16. Bxb4 $2 Ne3 17. Bxa5 Qxa5+ 18. Qd2 Nxc2+ 19. Kf2 Qxd2 20. Nxd2 Nxa1 21. Rxa1 Nxd4 $17) 16... Ne3 {[%emt 0:00:27]} 17. Qd2 {[%emt 0:05:01]} Rxa1+ {[%emt 0:00:07]} 18. Bxa1 {[%emt 0:00:03]} Nxb4 {[%emt 0:00:16]} 19. Bd1 {[%emt 0:02:26]} Nxd1 {[%emt 0:04:56]} 20. Qxb4 {[%emt 0:00:42]} Ne3 {[%emt 0:01:02]} 21. Kd2 {[%emt 0:09:49]} Ng4 {[%emt 0:04:35] [#]} (21... Nf5 $16) 22. Bb2 $1 $18 {[%emt 0:07:09] Black must now prevent Ra1.} Qe7 {[%emt 0:12:20]} 23. Qb8+ {[%emt 0:00:08]} ({Better is} 23. Ba3 $18 {[%csl Ga3][%cal Rb4e7]} Qxb4+ 24. Bxb4) 23... Qd8 $14 {[%emt 0:00:05]} 24. Qb4 {[%emt 0:00:03]} (24. Qxd8+ $14 Kxd8 25. Ng5) 24... Qe7 $1 $18 {[%emt 0:00:24]} 25. Qb8+ {[%emt 0:07:57]} ({White should try} 25. Ba3 $18 {[%csl Ga3][%cal Rb4e7]} Qxb4+ 26. Bxb4) 25... Qd8 $14 {[%emt 0:01:30]} 26. Qb4 {[%emt 0:00:03]} (26. Qxd8+ $14 Kxd8 27. Ng5) 26... Qe7 $1 $18 {[%emt 1:07:27] [#]} 27. Qxe7+ (27. Ba3 $1 $18 {[%csl Ga3][%cal Rb4e7] and White stays clearly on top.} Qxb4+ 28. Bxb4) 27... Kxe7 $16 28. Ba3+ Ke8 {[%emt 0:01:00]} (28... Kd8 $16) 29. Bb4 {[%emt 0:46:54]} Kd8 30. Ra1 {[%emt 0:00:30]} Kc7 {[%emt 0:01:00]} 31. Ra7+ {[%emt 0:00:30]} Kc6 32. Bd6 {Inhibits Rb8. Rc7+ is the strong threat.} Rc8 {[%emt 0:01:00] Prevents Rc7+.} 33. Ng5 {[%emt 0:01:00][%csl LRf7,LRh7] White is more active.} Nh6 {Weighted Error Value: White=0.20 (precise) /Black=0.15 (very precise)} *

[Event "2nd Serbia Open Masters 2022"]
[Site "Novi Sad"]
[Date "2022.07.01"]
[Round "4.28"]
[White "Roebers, Eline"]
[Black "Zanan, Evgeny"]
[Result "0-1"]
[ECO "B96"]
[WhiteElo "2369"]
[BlackElo "2534"]
[Annotator "TA"]
[PlyCount "124"]
[EventDate "2022.06.28"]
[EventType "swiss"]
[EventCountry "SRB"]
[SourceTitle "playchess.com"]
[Source "ChessBase"]
[SourceQuality "1"]
[TimeControl "40/5400+30:900+30"]

{[%evp 16,124,8,10,34,15,34,27,30,17,22,10,16,9,28,30,27,20,27,0,45,-43,-60,-49,0,-24,-17,-7,17,22,34,0,0,0,48,0,68,60,40,54,46,46,60,49,71,0,45,40,58,0,0,0,0,0,0,-154,-100,-168,-125,-129,-132,-129,-120,-119,0,-427,-421,-419,-396,-479,-477,-505,-499,-503,-313,-328,-293,-670,-681,-608,-599,-1049,-606,-914,-1028,-1009,-926,-2120,-1877,-2408,-1233,-29988,-29987,-29989,-1472,-29974,-29975,-29973,-29971,-5289,-1504,-1192,-710,-29982,-29983,-29986,-29987,-29987,-29985,-29987,-29981]} 1. e4 {[%emt 0:00:02]} c5 {[%emt 0:11:02]} 2. Nf3 {[%emt 0:00:05]} d6 {[%emt 0:00:04]} 3. d4 {[%emt 0:00:02]} cxd4 {[%emt 0:00:05]} 4. Nxd4 {[%emt 0:00:03]} Nf6 {[%emt 0:00:06]} 5. Nc3 {[%emt 0:00:02]} a6 {[%emt 0:00:05]} 6. Bg5 {[%emt 0:00:02]} e6 {[%emt 0:00:14]} 7. f4 {[%emt 0:00:03]} h6 {[%emt 0:00:03]} 8. Bh4 {[%emt 0:00:02]} Qb6 {[%emt 0:00:03]} 9. a3 {[%emt 0:00:03]} Nc6 {[%emt 0:00:06] B96: Sicilian Najdorf: 6 Bg5 e6 7 f4, lines other than 7...Qb6 and 7...Be7.} (9... Qxb2 $2 10. Na4 Qxa1 11. Qxa1 $18) 10. Bf2 {[%emt 0:01:02][%cal Od4e6]} Qc7 {[%emt 0:04:25]} (10... Qxb2 $2 11. Na4 Qxa1 12. Qxa1 $18) 11. Qf3 {[%emt 0:00:02]} e5 {[%emt 0:00:05] White has an edge.} 12. Nxc6 {[%emt 0:00:03]} bxc6 {[%emt 0:08:06] [#]} 13. f5 $146 {[%emt 0:01:01]} ({Predecessor:} 13. fxe5 dxe5 14. Bc4 Rb8 15. O-O Be7 16. h3 Be6 17. Bxe6 fxe6 18. b3 c5 19. Na4 {½-½ (32) Elyoseph,H (2429)-Ciciotti,A (2429) ICCF email 2020}) 13... d5 {[%emt 0:16:25]} 14. O-O-O {[%emt 0:03:43][%cal Re4d5]} d4 {[%emt 0:04:30]} 15. Nb1 {[%emt 0:03:23]} c5 {[%emt 0:11:20]} 16. Nd2 {[%emt 0:06:06]} Bb7 {[%emt 0:00:07]} 17. Bc4 {[%emt 0:12:54]} h5 {[%emt 0:06:01]} 18. g3 {[%emt 0:13:06]} (18. Bh4 $14) 18... Be7 $15 {[%emt 0:05:31]} 19. Kb1 {[%emt 0:10:26]} Ng4 {[%emt 0:04:52]} (19... Rb8 $15) 20. Bd3 {[%emt 0:03:58]} (20. h3 $5 {[%cal Rh3g4]} Nxf2 21. Qxf2 $11) 20... c4 {[%emt 0:01:45]} 21. Nxc4 {[%emt 0:02:48]} Nxf2 {[%emt 0:00:54]} 22. Qxf2 {[%emt 0:00:01][%cal Og3g4]} Rh6 {[%emt 0:06:06]} 23. Rhg1 {[%emt 0:06:24]} a5 {[%emt 0:03:52]} 24. a4 {[%emt 0:09:15]} Ba6 {[%emt 0:06:48]} (24... Rb8 $11 25. b3 Ba6) 25. Qe2 {[%emt 0:05:22]} (25. b3 $14 {deserves consideration.}) 25... Rb8 {[%emt 0:00:43]} ({Black should play} 25... Rc6 $1 $11 26. Nd2 Rc8 27. Bxa6 (27. Qxh5 $2 Rxc2 28. Nc4 Rxc4 $19) 27... Rxa6 28. Qxa6 Qxc2+ 29. Ka2 Qxa4+ 30. Kb1 Qc2+ 31. Ka2 Qa4+ 32. Kb1 Qc2+ 33. Ka2 Qa4+) 26. b3 $36 {[%emt 0:03:15][%cal Oc4e5][%mdl 2048] White has the initiative.} Rc6 {[%emt 0:01:02]} 27. Nb2 {[%emt 0:03:07]} (27. Nxe5 $2 Qxe5 28. Rg2 (28. Bxa6 $2 d3 $19) 28... Bxd3 29. Rxd3 h4 $19) 27... Bxd3 {[%emt 0:01:04]} 28. Rxd3 {[%emt 0:01:13]} Rc8 {[%emt 0:02:45][%cal Rc6c2]} 29. Rg2 $1 {[%emt 0:01:10]} Bb4 {[%emt 0:02:44]} 30. Nd1 {[%emt 0:08:56]} (30. Nc4 $2 Rxc4 31. f6 (31. bxc4 $2 Bc3 $19) 31... gxf6 $1 $19) (30. g4 $16) 30... Rc5 {[%emt 0:00:28]} 31. g4 {[%emt 0:04:19]} Qb7 {[%emt 0:01:35]} 32. c4 {[%emt 0:01:30]} (32. Qf3 $14) 32... dxc3 $11 {[%emt 0:00:31]} 33. Qc2 {[%emt 0:00:01]} Qxe4 {[%emt 0:02:36]} 34. Ne3 {[%emt 0:00:16][%cal Od3d8] And now Rd8+! would win.} (34. Rd8+ $2 Rxd8 35. Qxe4 Rxd1+ 36. Ka2 Rd2+ 37. Rxd2 cxd2 $19) 34... Qf4 {[%emt 0:00:30]} 35. f6 $2 {[%emt 0:01:21]} (35. gxh5 $11 Kf8 36. Nd5 Qxf5 37. Nb6) 35... Qxf6 {[%emt 0:00:26]} (35... e4 $142 36. Rd4 (36. fxg7 $2 exd3 37. Qxd3 Ke7 $19) 36... Qxf6 37. Rxe4+ Kf8) 36. Rf2 {[%emt 0:00:27]} (36. gxh5 $17 {was worth a try.} e4 37. Rd1) 36... Qg6 {[%emt 0:00:56]} 37. gxh5 {[%emt 0:00:42]} Qxh5 {[%emt 0:00:08]} 38. Nf5 {[%emt 0:00:35]} Kf8 {[%emt 0:00:17]} 39. Rd7 {[%emt 0:01:56]} R5c7 {[%emt 0:01:05]} ({Black should try} 39... R5c6 $1 $17 {[%cal Rc6f6] ...Rf6 is the strong threat.} 40. Ng3 Qg6 41. Qxg6 Rxg6 42. Rdxf7+ Kg8) 40. Qd3 $2 {[%emt 0:00:00][%mdl 8192] Black converts the advantage convincingly.} (40. Ng3 $11 {and White is okay.} Rxd7 41. Nxh5) 40... Qg5 $19 {[%emt 0:00:00]} ({Weaker is} 40... c2+ 41. Rxc2 $1 {[%mdl 512]} Kg8 42. Rdxc7 $18) 41. Rxc7 {[%emt 0:12:06]} Rxc7 {[%emt 0:01:16] Dancing on a razor blade.} 42. Kc2 {[%emt 0:00:05]} g6 {[%emt 0:09:18]} ({Don't go for} 42... Ba3 $2 43. Ne3 $19) 43. Ne3 {[%emt 0:00:27]} Bc5 {[%emt 0:01:58]} 44. Rf3 {[%emt 0:02:09]} Bxe3 {[%emt 0:01:10]} 45. Rxe3 {[%emt 0:00:01][%mdl 4096] Endgame KQR-KQR} Kg7 {[%emt 0:00:49]} 46. Re2 $2 {[%emt 0:00:34]} (46. Qe4 Rc5 47. Rxc3) 46... Rc5 {[%emt 0:01:01]} 47. Rf2 {[%emt 0:00:08]} Qe7 {[%emt 0:01:07] Prevents Qd7.} 48. Qg3 {[%emt 0:00:50]} Qb7 {[%emt 0:01:59] Threatens to win with ...Qe4+.} 49. Qh4 {[%emt 0:00:25]} f5 {[%emt 0:01:15] Hoping for ...f4.} 50. Re2 {[%emt 0:00:52]} e4 {[%emt 0:00:26] Strongly threatening ...Qd7.} 51. Qg5 {[%emt 0:00:32]} Qd7 {[%emt 0:00:28]} 52. Rg2 {[%emt 0:00:25]} Rc6 {[%emt 0:00:29] ( -> ...Qd3+)} 53. h4 {[%emt 0:00:24]} Qd3+ {[%emt 0:00:28]} 54. Kc1 {[%emt 0:00:02]} Qd6 {[%emt 0:00:31]} (54... Kf7 $142 55. h5 c2 56. Qxg6+ Rxg6 57. hxg6+ Kg7 58. Rxc2 Qxb3 59. Rc7+ Kxg6 60. Rc8 f4 61. Rc6+ Kg5 62. Rc7 f3 63. Rc5+ Kg4 64. Rc2 {[#]} Qxc2+ $3 {[%mdl 512]} 65. Kxc2 f2 66. Kc3 f1=Q 67. Kd4 e3 68. Ke5 e2 69. Ke6 e1=Q+ 70. Kd5 Qf3+ 71. Kd6 Qb7 72. Kc5 Qeb4#) 55. h5 {[%emt 0:00:29]} Qa3+ {[%emt 0:00:17]} 56. Kd1 {[%emt 0:00:42]} Qxb3+ {[%emt 0:00:34]} 57. Ke1 {[%emt 0:00:01]} Qb1+ {[%emt 0:00:50]} 58. Kf2 {[%emt 0:00:23]} e3+ {[%emt 0:00:30]} 59. Kg3 {[%emt 0:01:03]} Qe4 {[%emt 0:00:22] Black mates.} 60. h6+ {[%emt 0:01:17]} Kh7 {[%emt 0:00:06]} 61. Qd8 {[%emt 0:00:22]} Qe5+ {[%emt 0:00:39]} 62. Kh3 {[%emt 0:00:42]} Qc7 {[%emt 0:00:50] Weighted Error Value: White=0.57/Black=0.30} 0-1

[Event "2nd Serbia Open Masters 2022"]
[Site "Novi Sad"]
[Date "2022.07.01"]
[Round "4.29"]
[White "Budisavljevic, Luka"]
[Black "Pap, Misa"]
[Result "1-0"]
[ECO "A80"]
[WhiteElo "2507"]
[BlackElo "2375"]
[Annotator "TA"]
[PlyCount "171"]
[EventDate "2022.06.28"]
[EventType "swiss"]
[EventCountry "SRB"]
[SourceTitle "playchess.com"]
[Source "ChessBase"]
[SourceQuality "1"]
[TimeControl "40/5400+30:900+30"]

{[%evp 9,171,15,12,10,23,19,26,20,20,22,66,57,45,-15,46,55,118,102,112,120,132,118,125,145,139,138,114,75,89,84,93,108,109,29,21,4,0,-20,0,-45,-31,-35,-41,-32,-11,-22,-16,-37,69,82,71,37,55,72,78,69,98,92,114,107,253,50,102,102,95,103,126,121,111,114,236,222,247,243,257,257,232,231,265,269,272,272,271,269,267,255,345,346,350,329,293,304,314,302,685,609,488,221,334,109,109,109,109,109,109,54,54,54,54,54,62,62,62,62,69,69,69,77,77,129,136,123,129,136,107,0,95,95,453,389,354,174,8,52,560,553,490,443,416,0,8,0,266,266,1533,1343,1920,1774,29970,29971,29980,29981,29981,29982,29985,29985,29985,29986,29986,29987,29987,29988,29988,29989]} 1. d4 {[%emt 0:02:35]} f5 {[%emt 0:00:45]} 2. Bf4 {[%emt 0:00:28]} Nf6 {[%emt 0:00:20]} 3. e3 {[%emt 0:00:27]} e6 {[%emt 0:01:09]} 4. Nf3 {[%emt 0:01:02]} b6 {[%emt 0:01:10]} 5. h3 {[%emt 0:00:51]} Bb7 {[%emt 0:01:07]} 6. Nbd2 {[%emt 0:01:01] A80: Dutch Defence: Unusual White second moves.} g6 {[%emt 0:04:47]} 7. Bd3 {[%emt 0:06:55]} Bg7 {[%emt 0:00:10]} 8. c3 {[%emt 0:01:43] White has an edge.} O-O {[%emt 0:06:34]} 9. Qc2 {[%emt 0:00:33] [#]} c5 $146 {[%emt 1:18:58]} ({Predecessor:} 9... d6 10. O-O Nh5 11. Bc4 Qe7 12. Qb3 Re8 13. Ng5 Bc8 14. Ngf3 h6 15. Bh2 Kh7 {½-½ (61) Olsen,F (2353)-Haldorsen,B (2460) Ballerup 2020}) 10. Bd6 {[%emt 0:05:22]} Re8 {[%emt 0:00:00]} 11. O-O-O {[%emt 0:06:47]} (11. dxc5 $14 bxc5 12. Bxc5) 11... Qc8 {[%emt 0:00:00]} (11... cxd4 $11 12. exd4 (12. cxd4 Bf8 $11) 12... Nc6) 12. Rhg1 $14 {[%emt 0:14:17]} Qc6 {[%emt 0:00:00]} (12... Bd5 $14) 13. Be5 $16 {[%emt 0:04:52] White is more active.} d5 {[%emt 0:00:00]} 14. Bxf6 {[%emt 0:02:53]} Bxf6 {[%emt 0:00:00]} 15. g4 $1 {[%emt 0:00:03][%cal Rg4f5]} c4 {[%emt 0:00:00]} 16. Be2 {[%emt 0:00:02]} Nd7 {[%emt 0:00:00]} 17. h4 {[%emt 0:06:00][%cal Bh3h4,Bh4h5][%mdl 32]} Kf7 {[%emt 0:00:00]} 18. h5 {[%emt 0:01:26]} Rh8 {[%emt 0:00:00]} 19. gxf5 {[%emt 0:05:47]} gxf5 {[%emt 0:00:00]} 20. Ng5+ {[%emt 0:00:05][%cal Bf3g5,Bg5h3,Bh3f4][%mdl 32]} Ke7 {[%emt 0:00:00]} 21. f3 {[%emt 0:01:02]} ({White should play} 21. h6 $16) 21... Rag8 $11 {[%emt 0:00:00]} 22. Nh3 {[%emt 0:00:09][%cal Oe3e4]} Qd6 $36 {[%emt 0:00:00][%mdl 2048] Black fights for an advantage.} 23. Rh1 {[%emt 0:10:58] Prevents Qh2.} Rg2 {[%emt 0:00:00]} 24. Bf1 {[%emt 0:04:23]} Rh2 {[%emt 0:00:00]} 25. Rxh2 {[%emt 0:03:06]} Qxh2 {[%emt 0:00:00]} 26. Qa4 {[%emt 0:02:52]} a5 {[%emt 0:00:00]} 27. Nf4 {[%emt 0:01:15]} Re8 {[%emt 0:01:15]} 28. Qa3+ {[%emt 0:06:09]} Kf7 {[%emt 0:01:32]} (28... Kd8 $1 $15) 29. Qd6 $14 {[%emt 0:00:02]} Re7 {[%emt 0:00:00]} 30. Qc7 {[%emt 0:01:12] Really sharp!} Nf8 $1 {[%emt 0:01:16]} 31. Qxb6 {[%emt 0:00:12]} Bg5 {[%emt 0:00:20]} 32. Ng2 $1 {[%emt 0:02:05]} Qxh5 {[%emt 0:01:51]} 33. Qxa5 {[%emt 0:00:01]} Ng6 {[%emt 0:01:32]} 34. f4 {[%emt 0:02:05]} Bh4 {[%emt 0:00:52]} (34... Bf6 $16 {might work better.}) 35. Qa4 $2 {[%emt 0:02:50]} (35. Nxh4 $18 Qxh4 36. Be2) 35... Bf2 {[%emt 0:01:02] [#]} (35... Bg3 $1 $14) 36. Qc2 $1 $16 {[%emt 0:00:12][%cal Od2c4] Black must now prevent Nxc4!} Bg3 {[%emt 0:00:44]} 37. Ne1 {[%emt 0:01:55]} Kg7 {[%emt 0:01:30]} 38. Ndf3 {[%emt 0:00:23]} Bc6 {[%emt 0:01:29]} 39. Qg2 {[%emt 0:01:48]} Bxe1 {[%emt 0:01:05]} (39... Qg4 $16 {was worth a try.}) 40. Rxe1 $18 {[%emt 0:00:00]} Qg4 {[%emt 0:00:00]} 41. Qf2 {[%emt 0:02:23]} Kf8 {[%emt 0:04:00]} 42. Be2 {[%emt 0:00:36] Hoping for Qh2.} Qh3 {[%emt 0:00:18]} 43. Ng5 {[%emt 0:02:55]} Qh6 {[%emt 0:00:11]} 44. Qg2 {[%emt 0:01:00] And now Rh1 would win.} Qg7 {[%emt 0:00:41]} 45. Rh1 {[%emt 0:01:30]} h6 {[%emt 0:00:25]} 46. Nf3 {[%emt 0:00:15]} Ra7 {[%emt 0:01:46]} 47. Kb1 {[%emt 0:02:59]} Ne7 {[%emt 0:00:22]} 48. Qh2 {[%emt 0:03:14]} Ng8 {[%emt 0:00:02]} 49. Rg1 {[%emt 0:02:26]} Qf6 {[%emt 0:00:21]} 50. Ne5 {[%emt 0:00:42]} Be8 {[%emt 0:00:06] Inhibits Rg6.} 51. Bh5 {[%emt 0:00:53]} Rg7 $2 {[%emt 0:00:17]} (51... Bxh5 52. Qxh5 Rg7) 52. Bxe8 {[%emt 0:00:06]} Kxe8 {[%emt 0:00:13]} 53. Qh5+ {[%emt 0:00:30]} (53. a4 $142) 53... Ke7 {[%emt 0:00:46]} (53... Kd8 $142 54. Rh1 Qf8) 54. Rg6 $2 {[%emt 0:00:49]} (54. Rxg7+ Qxg7 55. Qd1 (55. Qh4+ Nf6 $16) 55... Nf6 $16) (54. Qd1 $18 {and White stays clearly on top.} Kd6 55. Rh1) 54... Rxg6 $16 {[%emt 0:00:08]} 55. Qxg6 {[%emt 0:01:57]} Qxg6 {[%emt 0:00:04]} 56. Nxg6+ {[%emt 0:00:02][%mdl 4096] Endgame KN-KN} Kd6 {[%emt 0:00:05]} 57. b3 {[%emt 0:02:00]} ({Better is} 57. Kc2 $16) 57... cxb3 $14 {[%emt 0:00:04]} 58. axb3 {[%emt 0:00:02]} Nf6 {[%emt 0:00:06]} 59. Kc2 {[%emt 0:00:18]} h5 {[%emt 0:00:32]} 60. c4 {[%emt 0:00:44]} dxc4 {[%emt 0:00:04]} 61. bxc4 {[%emt 0:00:02]} Ng4 {[%emt 0:00:31]} 62. Kd2 {[%emt 0:01:00]} Nf2 {[%emt 0:00:13]} 63. Ke2 {[%emt 0:00:45]} Ne4 {[%emt 0:16:17]} 64. Nh4 {[%emt 0:01:20]} Ke7 {[%emt 0:00:00]} 65. Nf3 {[%emt 0:00:13] Threatens to win with Nd2.} Nc3+ {[%emt 0:00:00]} 66. Kd2 {[%emt 0:00:22]} Ne4+ {[%emt 0:00:00]} 67. Ke2 {[%emt 0:00:01] aiming for Nd2.} Nc3+ $1 {[%emt 0:00:00]} 68. Ke1 {[%emt 0:00:10]} Kd6 $2 {[%emt 0:00:00][%mdl 8192] [#]} (68... Kd7 $16 {is tougher.}) 69. Nd2 $1 $18 {[%emt 0:01:21]} h4 {[%emt 0:00:00]} 70. Kf2 {[%emt 0:00:01]} (70. Kf1 $142) 70... Nd1+ {[%emt 0:00:00]} 71. Kf3 {[%emt 0:00:10]} Nb2 $2 {[%emt 0:00:00][%mdl 8192]} (71... Kc6 $14 72. Ke2 h3) 72. Kg2 {[%emt 0:00:15]} Nd1 {[%emt 0:00:00]} 73. Nf1 {[%emt 0:00:05]} Nb2 {[%emt 0:00:00]} 74. Nd2 $2 {[%emt 0:00:16]} (74. c5+ $18 Kd7 75. Kh3) 74... Nd1 $11 {[%emt 0:00:00]} 75. Nf1 $2 {[%emt 0:00:07][%mdl 8192]} (75. c5+ $11 Kc6 76. Nf1) 75... Nb2 $1 $18 {[%emt 0:00:00]} 76. c5+ {[%emt 0:00:04][%cal Bc4c5,Bc5c6,Bc6c7][%mdl 32]} Kd5 $2 {[%emt 0:00:00]} (76... Ke7 77. Kh3 Nd1 78. Kxh4 Kf6) 77. Kh3 {[%emt 0:00:27]} Ke4 {[%emt 0:00:00]} 78. Kxh4 {[%emt 0:01:31]} Kd3 {[%emt 0:00:00]} 79. Kg5 {[%emt 0:01:29] White mates.} Ke2 {[%emt 0:00:00] [#]} 80. c6 $1 {[%emt 0:01:03]} Nc4 {[%emt 0:00:00] [#]} 81. Kf6 $1 {[%emt 0:00:12]} Kxf1 {[%emt 0:00:00]} (81... e5 82. fxe5) 82. c7 {[%emt 0:00:05]} Nb6 {[%emt 0:00:00]} 83. Kxe6 {[%emt 0:00:05]} Ke2 {[%emt 0:00:00]} 84. d5 {[%emt 0:00:15][%cal Bd4d5,Bd5d6,Bd6d7][%mdl 32]} Kxe3 {[%emt 0:00:00]} 85. d6 {[%emt 0:00:34]} Kxf4 {[%emt 0:00:00]} 86. d7 {[%emt 0:00:04] Weighted Error Value: White=0.23 (precise) /Black=0.27 (precise)} 1-0

[Event "2nd Serbia Open Masters 2022"]
[Site "Novi Sad"]
[Date "2022.07.01"]
[Round "4.30"]
[White "Muradli, Mahammad"]
[Black "Tadic, Stefan"]
[Result "1-0"]
[ECO "D12"]
[WhiteElo "2539"]
[BlackElo "2358"]
[Annotator "TA"]
[PlyCount "79"]
[EventDate "2022.06.28"]
[EventType "swiss"]
[EventCountry "SRB"]
[SourceTitle "playchess.com"]
[Source "ChessBase"]
[SourceQuality "1"]
[TimeControl "40/5400+30:900+30"]

{[%evp 17,79,25,29,31,32,34,35,31,29,19,60,29,32,15,24,10,55,24,68,40,102,102,97,93,99,99,130,87,148,86,86,79,80,80,80,80,85,86,76,76,78,78,177,176,174,153,160,169,162,160,121,128,487,443,701,712,725,730,720,722,712,702,670,658]} 1. c4 {[%emt 0:07:43]} c6 {[%emt 0:02:03]} 2. Nf3 {[%emt 0:00:57]} d5 {[%emt 0:00:06]} 3. e3 {[%emt 0:00:08]} Nf6 {[%emt 0:01:10]} 4. d4 {[%emt 0:00:06]} Bf5 {[%emt 0:00:40]} 5. Nc3 {[%emt 0:00:06]} e6 {[%emt 0:00:15]} 6. Nh4 {[%emt 0:00:04]} Be4 {[%emt 0:00:06]} 7. f3 {[%emt 0:00:12]} Bg6 {[%emt 0:00:09]} 8. Qb3 {[%emt 0:00:06]} Qb6 {[%emt 0:01:01]} 9. Nxg6 {[%emt 0:03:35]} hxg6 {[%emt 0:00:06]} 10. Bd2 {[%emt 0:00:17] D12: Slav Defence: 3 Nf3 Nf6 4 e3 Bf5.} Qxb3 {[%emt 0:00:48]} 11. axb3 {[%emt 0:00:02]} a6 {[%emt 0:00:05]} 12. c5 {[%emt 0:05:33] White is slightly better.} Nbd7 {[%emt 0:08:24]} 13. b4 {[%emt 0:02:00][%cal Ob4b5] Strongly threatening b5!} Rc8 {[%emt 0:18:19]} 14. Kf2 {[%emt 0:05:35]} Be7 {[%emt 0:05:35] [#]} 15. Bd3 $146 {[%emt 0:00:33]} ({Predecessor:} 15. Be2 Bd8 16. g4 g5 17. Kg2 Nh7 18. Bd3 Bf6 19. Be1 Nhf8 20. Bg3 g6 21. Ne2 {1-0 (67) Ivanov,M (2446)-Giesen,D (2212) Schwarzach 2001}) 15... e5 {[%emt 0:12:11]} 16. h4 {[%emt 0:06:18]} Bd8 {[%emt 0:02:12]} 17. g4 {[%emt 0:07:05]} Bc7 {[%emt 0:04:11]} 18. Rag1 {[%emt 0:05:49]} Nf8 {[%emt 0:13:20]} (18... exd4 $14 19. exd4 Nf8) 19. dxe5 $16 {[%emt 0:04:09]} Bxe5 {[%emt 0:00:06]} 20. f4 {[%emt 0:00:30]} Bc7 {[%emt 0:00:55]} 21. Ne2 {[%emt 0:00:19]} N8d7 {[%emt 0:04:44]} 22. Bc3 {[%emt 0:06:00][%cal Oh4h5]} Kf8 {[%emt 0:00:57]} ({Black should play} 22... a5) 23. Bd4 {[%emt 0:02:29]} (23. h5 $142) 23... Re8 {[%emt 0:01:11]} 24. h5 {[%emt 0:09:56]} gxh5 {[%emt 0:07:45]} 25. g5 {[%emt 0:00:20]} Ne4+ {[%emt 0:01:06]} 26. Bxe4 {[%emt 0:00:07]} Rxe4 {[%emt 0:01:50]} 27. Kf3 {[%emt 0:00:11]} f6 {[%emt 0:05:27]} 28. g6 {[%emt 0:05:12]} Re8 {[%emt 0:04:36]} 29. Ng3 $1 {[%emt 0:00:04]} Kg8 {[%emt 0:00:21]} (29... h4 $16) 30. Nxh5 $18 {[%emt 0:01:16]} Bd8 {[%emt 0:01:06]} 31. Rh3 {[%emt 0:04:42]} Rh6 {[%emt 0:00:31] [#]} 32. f5 $1 {[%emt 0:03:15] White is more active.} Re4 {[%emt 0:01:24] [#]} 33. Rgh1 $1 {[%emt 0:00:14][%cal Oh5g7] Nxg7! is the strong threat.} Ne5+ {[%emt 0:00:20]} 34. Ke2 {[%emt 0:00:06]} Ng4 $2 {[%emt 0:02:23][%mdl 8192] This move loses the game for Black.} (34... Be7 $16) 35. Rh4 {[%emt 0:03:33] White is clearly winning.} Ne5 {[%emt 0:01:41]} (35... Be7 $142 36. Ng3 Bd8 37. Nxe4 dxe4) 36. Rxe4 {[%emt 0:00:06]} dxe4 {[%emt 0:00:02]} 37. Bxe5 {[%emt 0:00:07]} fxe5 {[%emt 0:00:01]} 38. Ng3 {[%emt 0:00:28]} Rxh1 {[%emt 0:00:11]} 39. Nxh1 {[%emt 0:00:02]} Bh4 {[%emt 0:00:24]} 40. Nf2 {[%emt 0:00:00] Weighted Error Value: White=0.07 (flawless) /Black=0.43} 1-0